fUSD/lending_fUSD_20250814
["ID","MTS","AMOUNT","RATE_DAILY","PERIOD"]
[379151802,1755166240442,-148896.37427952,0.00035606,2]
[379151803,1755166240453,-613.68557684,0.00035607,2]
[379151804,1755166240463,-305926.89600896,0.00035614,7]
[379151805,1755166240473,-890.05,0.00035616,12]
[379151806,1755166240483,-581.84,0.00035616,12]
[379151807,1755166240492,-400.0,0.00035616,12]
[379151808,1755166240502,-400.0,0.00035616,12]
[379151809,1755166240511,-838.61,0.00035616,12]
[379151810,1755166240521,-411.33,0.00035616,12]
[379151811,1755166240530,-1437.15,0.00035616,12]
[379151812,1755166240540,-400.0,0.00035616,12]
[379151813,1755166240550,-400.0,0.00035616,12]
[379151814,1755166240560,-400.0,0.00035616,12]
[379151815,1755166240569,-400.0,0.00035616,12]
[379151816,1755166240578,-2513.32,0.00035616,12]
[379151817,1755166240588,-400.0,0.00035616,12]
[379151818,1755166240597,-840.81,0.00035616,12]
[379151820,1755166240608,-2137.23,0.00035616,12]
[379151821,1755166240617,-400.0,0.00035616,12]
[379151823,1755166240627,-801.48,0.00035616,12]
[379151824,1755166240636,-400.0,0.00035616,12]
[379151825,1755166240649,-400.0,0.00035616,12]
[379151827,1755166240659,-400.0,0.00035616,12]
[379151829,1755166240668,-400.0,0.00035616,12]
[379151830,1755166240678,-569.57,0.00035616,12]
[379151832,1755166240687,-400.0,0.00035616,12]
[379151834,1755166240698,-1007.71,0.00035616,12]
[379151836,1755166240707,-2770.21,0.00035616,12]
[379151837,1755166240716,-2335.83,0.00035616,12]
[379151838,1755166240725,-3650.79,0.00035616,12]
[379151839,1755166240735,-400.0,0.00035616,12]
[379151840,1755166240745,-431.45,0.00035616,12]
[379151842,1755166240754,-3651.51,0.00035616,12]
[379151843,1755166240765,-400.0,0.00035616,12]
[379151844,1755166240775,-650.25,0.00035616,12]
[379151845,1755166240784,-418.32,0.00035616,12]
[379151846,1755166240793,-2157.25,0.00035616,12]
[379151847,1755166240803,-558.63,0.00035616,12]
[379151848,1755166240812,-1078.77,0.00035616,12]
[379151849,1755166240823,-400.0,0.00035616,12]
[379151850,1755166240832,-1891.14,0.00035616,12]
[379151851,1755166240842,-509.9929001,0.00035616,12]
[379151852,1755166240852,-400.0,0.00035616,12]
[379151853,1755166240862,-532.30573842,0.00035616,12]
[379151854,1755166240872,-927.56,0.00035616,12]
[379151855,1755166240883,-400.0,0.00035616,12]
[379151856,1755166240896,-562.69,0.00035616,12]
[379151857,1755166240906,-400.0,0.00035616,12]
[379151858,1755166240916,-400.0,0.00035616,12]
[379151859,1755166240925,-1563.67,0.00035616,12]
[379151860,1755166240935,-400.0,0.00035616,7]
[379151861,1755166240944,-400.0,0.00035616,12]
[379151862,1755166240954,-3118.28,0.00035616,12]
[379151863,1755166240963,-500.0,0.00035616,12]
[379151864,1755166240973,-400.0,0.00035616,12]
[379151865,1755166240983,-500.0,0.00035616,12]
[379151866,1755166240992,-2183.17,0.00035616,12]
[379151867,1755166241002,-500.0,0.00035616,12]
[379151868,1755166241011,-500.0,0.00035616,12]
[379151869,1755166241020,-500.0,0.00035616,12]
[379151870,1755166241030,-594.03,0.00035616,12]
[379151871,1755166241039,-400.0,0.00035616,12]
[379151872,1755166241048,-638.47,0.00035616,12]
[379151873,1755166241058,-915.33,0.00035616,12]
[379151874,1755166241068,-2595.5,0.00035616,12]
[379151875,1755166241077,-400.0,0.00035616,12]
[379151876,1755166241086,-491.78285041,0.00035616,12]
[379151878,1755166241095,-6334.67,0.00035616,12]
[379151880,1755166241104,-3140.92,0.00035616,12]
[379151882,1755166241114,-400.0,0.00035616,12]
[379151884,1755166241123,-400.0,0.00035616,12]
[379151885,1755166241132,-400.0,0.00035616,12]
[379151887,1755166241142,-400.0,0.00035616,12]
[379151889,1755166241152,-527.59515232,0.00035616,12]
[379151891,1755166241161,-584.25,0.00035616,12]
[379151893,1755166241170,-400.0,0.00035616,12]
[379151894,1755166241180,-6188.12,0.00035616,12]
[379151895,1755166241190,-2598.37,0.00035616,12]
[379151896,1755166241200,-400.0,0.00035616,12]
[379151897,1755166241209,-5173.19,0.00035616,12]
[379151898,1755166241218,-400.0,0.00035616,12]
[379151899,1755166241227,-400.0,0.00035616,12]
[379151900,1755166241237,-4448.05,0.00035616,12]
[379151901,1755166241247,-443.12,0.00035616,12]
[379151902,1755166241257,-781.16,0.00035616,12]
[379151903,1755166241266,-930.94,0.00035616,12]
[379151904,1755166241275,-503.17,0.00035616,12]
[379151905,1755166241284,-1552.46,0.00035616,12]
[379151906,1755166241293,-745.95,0.00035616,12]
[379151907,1755166241303,-1179.05,0.00035616,12]
[379151908,1755166241312,-400.19030227,0.00035616,12]
[379151909,1755166241323,-475.55,0.00035616,12]
[379151910,1755166241339,-607.67,0.00035616,12]
[379151911,1755166241349,-400.0,0.00035616,12]
[379151912,1755166241359,-400.0,0.00035616,12]
[379151913,1755166241369,-1444.83,0.00035616,12]
[379151914,1755166241383,-400.0,0.00035616,12]
[379151915,1755166241395,-829.58,0.00035616,12]
[379151916,1755166241405,-400.0,0.00035616,12]
[379151917,1755166241416,-650.84,0.00035616,12]
[379151918,1755166241426,-400.0,0.00035616,12]
[379151919,1755166241436,-400.0,0.00035616,12]
[379151920,1755166241447,-400.0,0.00035616,12]
[379151921,1755166241457,-958.62,0.00035616,12]
[379151922,1755166241467,-400.0,0.00035616,12]
[379151923,1755166241476,-363.19,0.00035616,12]
[379151924,1755166241485,-1210.89,0.00035616,12]
[379151925,1755166241495,-428.4,0.00035616,12]
[379151926,1755166241503,-400.0,0.00035616,12]
[379151927,1755166241513,-400.0,0.00035616,12]
[379151928,1755166241522,-5462.44,0.00035616,12]
[379151929,1755166241531,-400.0,0.00035616,12]
[379151930,1755166241540,-3484.33,0.00035616,12]
[379151931,1755166241549,-400.0,0.00035616,12]
[379151932,1755166241559,-808.6,0.00035616,12]
[379151933,1755166241568,-533.69,0.00035616,7]
[379151934,1755166241578,-400.0,0.00035616,12]
[379151935,1755166241588,-400.0,0.00035616,12]
[379151936,1755166241597,-2851.46,0.00035616,12]
[379151937,1755166241606,-3262.1,0.00035616,12]
[379151938,1755166241615,-400.0,0.00035616,12]
[379151939,1755166241625,-400.0,0.00035616,12]
[379151940,1755166241634,-3279.2,0.00035616,12]
[379151941,1755166241645,-3626.21,0.00035616,12]
[379151942,1755166241655,-400.0,0.00035616,12]
[379151943,1755166241663,-400.0,0.00035616,12]
[379151944,1755166241673,-400.0,0.00035616,12]
[379151945,1755166241683,-400.0,0.00035616,12]
[379151946,1755166241692,-3870.5,0.00035616,12]
[379151947,1755166241701,-400.0,0.00035616,12]
[379151948,1755166241710,-1964.91,0.00035616,12]
[379151949,1755166241719,-1132.21,0.00035616,12]
[379151950,1755166241728,-2138.18,0.00035616,12]
[379151951,1755166241738,-400.0,0.00035616,12]
[379151952,1755166241747,-400.0,0.00035616,12]
[379151953,1755166241756,-1328.36,0.00035616,12]
[379151954,1755166241767,-1328.36,0.00035616,12]
[379151955,1755166241776,-1328.36,0.00035616,12]
[379151956,1755166241785,-1328.36,0.00035616,12]
[379151957,1755166241794,-1022.71,0.00035616,12]
[379151958,1755166241803,-1328.36,0.00035616,12]
[379151959,1755166241813,-1328.36,0.00035616,12]
[379151960,1755166241823,-400.0,0.00035616,12]
[379151961,1755166241832,-1328.36,0.00035616,12]
[379151962,1755166241842,-1328.36,0.00035616,12]
[379151963,1755166241851,-1818.64,0.00035616,12]
[379151964,1755166241861,-1328.36,0.00035616,12]
[379151965,1755166241870,-5560.74,0.00035616,12]
[379151966,1755166241880,-1328.36,0.00035616,12]
[379151967,1755166241889,-1328.36,0.00035616,12]
[379151968,1755166241899,-1328.36,0.00035616,12]
[379151969,1755166241908,-1328.36,0.00035616,12]
[379151970,1755166241918,-529.18,0.00035616,12]
[379151971,1755166241927,-1328.36,0.00035616,12]
[379151972,1755166241936,-1328.36,0.00035616,12]
[379151973,1755166241945,-1328.36,0.00035616,12]
[379151974,1755166241954,-994.97,0.00035616,12]
[379151975,1755166241964,-1328.36,0.00035616,12]
[379151976,1755166241973,-1328.36,0.00035616,12]
[379151977,1755166241982,-1328.36,0.00035616,12]
[379151978,1755166241991,-1328.36,0.00035616,12]
[379151979,1755166242001,-3000.53,0.00035616,12]
[379151980,1755166242010,-1328.36,0.00035616,12]
[379151981,1755166242019,-1328.36,0.00035616,12]
[379151982,1755166242028,-1328.36,0.00035616,12]
[379151983,1755166242038,-1328.49379781,0.00035616,12]
[379151984,1755166242047,-1078.57,0.00035616,12]
[379151985,1755166242057,-400.0,0.00035616,2]
[379151986,1755166242066,-467.11,0.00035616,12]
[379151987,1755166242076,-1671.67,0.00035616,12]
[379151988,1755166242085,-400.0,0.00035616,12]
[379151989,1755166242094,-1109.5,0.00035616,12]
[379151990,1755166242103,-512.36,0.00035616,12]
[379151991,1755166242113,-6042.96,0.00035616,12]
[379151992,1755166242122,-400.0,0.00035616,12]
[379151993,1755166242131,-2025.05,0.00035616,12]
[379151994,1755166242142,-1993.76,0.00035616,12]
[379151995,1755166242151,-2341.76,0.00035616,12]
[379151996,1755166242161,-2066.95,0.00035616,12]
[379151997,1755166242170,-1467.14,0.00035616,12]
[379151998,1755166242179,-877.83,0.00035616,12]
[379151999,1755166242188,-400.0,0.00035616,12]
[379152000,1755166242198,-482.29,0.00035616,12]
[379152001,1755166242207,-4235.16,0.00035616,12]
[379152002,1755166242216,-587.77,0.00035616,12]
[379152003,1755166242227,-400.0,0.00035616,12]
[379152004,1755166242236,-400.0,0.00035616,12]
[379152005,1755166242246,-2284.35,0.00035616,120]
[379152006,1755166242256,-400.0,0.00035616,12]
[379152007,1755166242266,-400.0,0.00035616,12]
[379152008,1755166242275,-400.0,0.00035616,12]
[379152009,1755166242284,-400.0,0.00035616,12]
[379152010,1755166242293,-400.0,0.00035616,12]
[379152011,1755166242302,-400.0,0.00035616,12]
[379152012,1755166242311,-725.95,0.00035616,12]
[379152013,1755166242320,-400.0,0.00035616,12]
[379152014,1755166242332,-400.0,0.00035616,12]
[379152015,1755166242342,-400.0,0.00035616,12]
[379152016,1755166242351,-400.0,0.00035616,12]
[379152017,1755166242361,-1351.55,0.00035616,12]
[379152018,1755166242371,-400.0,0.00035616,12]
[379152019,1755166242380,-890.16,0.00035616,12]
[379152020,1755166242392,-1427.77,0.00035616,12]
[379152021,1755166242402,-1257.66,0.00035616,12]
[379152022,1755166242413,-3678.53,0.00035616,12]
[379152023,1755166242423,-3158.08,0.00035616,12]
[379152024,1755166242432,-400.0,0.00035616,12]
[379152025,1755166242441,-2061.09,0.00035616,12]
[379152026,1755166242450,-3857.99,0.00035616,12]
[379152027,1755166242459,-4496.14,0.00035616,12]
[379152028,1755166242468,-400.0,0.00035616,12]
[379152029,1755166242478,-402.97,0.00035616,12]
[379152030,1755166242487,-400.0,0.00035616,12]
[379152031,1755166242497,-1109.09,0.00035616,12]
[379152032,1755166242506,-499.09,0.00035616,12]
[379152033,1755166242515,-2707.97,0.00035616,12]
[379152034,1755166242524,-843.43,0.00035616,12]
[379152035,1755166242534,-400.0,0.00035616,12]
[379152036,1755166242543,-2099.56,0.00035616,12]
[379152037,1755166242553,-400.0,0.00035616,12]
[379152038,1755166242563,-566.39,0.00035616,12]
[379152039,1755166242572,-3166.58,0.00035616,12]
[379152040,1755166242582,-400.0,0.00035616,12]
[379152041,1755166242591,-400.0,0.00035616,12]
[379152042,1755166242601,-3999.73,0.00035616,12]
[379152043,1755166242611,-699.62,0.00035616,12]
[379152044,1755166242621,-402.56876129,0.00035616,12]
[379152045,1755166242630,-400.0,0.00035616,2]
[379152046,1755166242640,-464.24,0.00035616,12]
[379152047,1755166242650,-1054.69,0.00035616,12]
[379152048,1755166242660,-400.0,0.00035616,12]
[379152049,1755166242670,-478.11,0.00035616,12]
[379152050,1755166242679,-400.0,0.00035616,12]
[379152051,1755166242688,-400.0,0.00035616,12]
[379152052,1755166242698,-3386.93,0.00035616,12]
[379152053,1755166242707,-1496.93,0.00035616,12]
[379152054,1755166242717,-1801.6,0.00035616,12]
[379152055,1755166242727,-164.77639234,0.00035616,12]
[379152056,1755166242855,-270.3569241,0.00035616,12]
[379152093,1755166244500,-29.01668356,0.00035616,12]
[379152094,1755166244511,-3472.51,0.00035616,12]
[379152095,1755166244521,-400.0,0.00035616,12]
[379152096,1755166244530,-400.0,0.00035616,12]
[379152097,1755166244540,-2990.7,0.00035616,12]
[379152098,1755166244549,-2889.75,0.00035616,12]
[379152099,1755166244559,-400.0,0.00035616,12]
[379152100,1755166244568,-400.0,0.00035616,12]
[379152101,1755166244578,-826.95,0.00035616,12]
[379152102,1755166244587,-400.0,0.00035616,12]
[379152103,1755166244597,-400.0,0.00035616,12]
[379152104,1755166244606,-400.0,0.00035616,12]
[379152105,1755166244616,-3123.32,0.00035616,12]
[379152106,1755166244626,-2813.72,0.00035616,12]
[379152107,1755166244636,-400.0,0.00035616,12]
[379152108,1755166244648,-400.0,0.00035616,12]
[379152109,1755166244658,-2246.12745769,0.00035616,12]
[379152110,1755166244718,-1545.93254231,0.00035616,12]
[379152111,1755166244729,-400.0,0.00035616,12]
[379152112,1755166244739,-2936.19997166,0.00035616,12]
[379152121,1755166246448,-48.77002834,0.00035616,12]
[379152122,1755166246458,-1667.09,0.00035616,12]
[379152123,1755166246469,-400.0,0.00035616,12]
[379152124,1755166246479,-1169.97,0.00035616,12]
[379152125,1755166246490,-1927.54,0.00035616,12]
[379152126,1755166246501,-400.0,0.00035616,12]
[379152127,1755166246511,-555.93668857,0.00035616,12]
[379152128,1755166246523,-506.75331143,0.00035616,12]
[379152129,1755166246533,-500.0,0.00035616,12]
[379152130,1755166246542,-500.0,0.00035616,12]
[379152131,1755166246552,-500.0,0.00035616,12]
[379152132,1755166246562,-740.9,0.00035616,12]
[379152133,1755166246571,-500.0,0.00035616,12]
[379152134,1755166246580,-3530.04,0.00035616,12]
[379152135,1755166246590,-335.86718288,0.00035616,12]
[379152136,1755166246600,-1712.0,0.00035616,12]
[379152137,1755166246610,-400.0,0.00035616,12]
[379152138,1755166246619,-497.22617569,0.00035616,12]
[379152186,1755166247495,-3876.73382431,0.00035616,12]
[379152188,1755166247505,-442.02,0.00035616,12]
[379152199,1755166247637,-438.44617569,0.00035616,12]
[379152200,1755166247689,-646.8598447,0.00035616,12]
[379152242,1755166270333,158.41,0.00013699,2]
[379152247,1755166791926,458.1389606,0.0003013,120]
[379152284,1755167032458,452.0,0.0003013,120]
[379152316,1755167108575,93013.42538608,0.00019,2]
[379152379,1755167288633,3588.13801138,0.0002,14]
[379152395,1755167314338,486.09210624,0.0002,10]
[379152432,1755167402650,4000.0,0.0002,4]
[379152464,1755167435145,-603.26804711,0.00018882,2]
[379152465,1755167435155,-180.07288731,0.00018899,2]
[379152466,1755167435164,-1238.45503168,0.000189,2]
[379152467,1755167435174,-185.57219612,0.000189,2]
[379152468,1755167435183,-626.96823442,0.000189,2]
[379152469,1755167435192,-453.6312424,0.000189,2]
[379152470,1755167435202,-626.96823439,0.0001894,2]
[379152471,1755167435211,-508.85986074,0.00018973,2]
[379152472,1755167435221,-500.0,0.00018973,2]
[379152473,1755167435230,-150.93883738,0.00018973,2]
[379152474,1755167435239,-502.47054377,0.00018973,2]
[379152475,1755167435249,-513.98868184,0.00018973,2]
[379152476,1755167435259,-500.0,0.00018973,2]
[379152477,1755167435268,-480.67379185,0.00018973,2]
[379152478,1755167435303,-90.09905386,0.00018973,2]
[379152479,1755167435313,-626.96823439,0.00018981,2]
[379152480,1755167435323,-1000.0,0.00018999,2]
[379152481,1755167435333,-300.0,0.00018999,2]
[379152482,1755167435342,-433.0,0.00018999,2]
[379152483,1755167435352,-600.0,0.00018999,2]
[379152484,1755167435362,-1539.01756192,0.00019,2]
[379152485,1755167435373,-343.17697357,0.00019,2]
[379152486,1755167435385,-1448.40866244,0.00019,2]
[379152488,1755167435404,-5487.27489751,0.00019,2]
[379152489,1755167435415,-14652.91314288,0.00019,2]
[379152490,1755167435427,-54535.35229935,0.00019,2]
[379152491,1755167435463,-1900.0,0.00019,2]
[379152493,1755167435496,-15733.71419738,0.00019,2]
[379152494,1755167435508,-36810.76236366,0.00019,2]
[379152495,1755167435519,-1035.63080181,0.00019,2]
[379152496,1755167435532,-1475.83850007,0.00019,2]
[379152497,1755167435566,-267.71244107,0.00019,2]
[379152498,1755167435578,-1793.72759095,0.00019,2]
[379152499,1755167435589,-81285.68041523,0.00019,2]
[379152507,1755167437571,-318756.39515321,0.00019,2]
[379152508,1755167437587,-997.27949996,0.00019,2]
[379152509,1755167437621,-228990.11184865,0.00019,2]
[379152510,1755167437655,-9147.07544955,0.00019,2]
[379152511,1755167437666,-23146.03536535,0.00019,2]
[379152512,1755167437732,-11113.38300372,0.00019,2]
[379152513,1755167437743,-62654.722092,0.00019,2]
[379152514,1755167437787,-7426.62462054,0.00019,2]
[379152741,1755167440237,-607.91080277,0.00019,2]
[379152744,1755167440249,-4579484.31409662,0.00019,2]
[379152750,1755167440302,-1283.2815072,0.00019,2]
[379152753,1755167440313,-443.52686882,0.00019,2]
[379152757,1755167440344,-893.0,0.00019,2]
[379153006,1755167442703,-156.20989094,0.0001899,2]
[379153008,1755167442714,-904.4281498,0.00019,2]
[379153017,1755167442797,-2500.41311264,0.00019,2]
[379153305,1755167445865,-637.60800009,0.00019,2]
[379153926,1755167468034,1500.0,0.00027468,120]
[379153933,1755167603629,218.74,0.0002852,120]
[379153934,1755167671248,-1929.729,0.0001862,2]
[379153935,1755167671270,-171.134,0.0001862,2]
[379153936,1755167671294,-10551.31650609,0.000189,2]
[379153937,1755167671316,-5153.38421893,0.000189,2]
[379153938,1755167671338,-313.48411722,0.000189,2]
[379153939,1755167671359,-177.92230205,0.000189,2]
[379153940,1755167671382,-35820.68601549,0.000189,2]
[379153941,1755167671403,-206.50194614,0.000189,2]
[379153942,1755167671425,-600.0,0.00018989,2]
[379153943,1755167671446,-600.0,0.00018989,2]
[379153944,1755167671468,-600.0,0.00018989,2]
[379153945,1755167671489,-600.0,0.00018989,2]
[379153946,1755167671510,-600.0,0.00018989,2]
[379153947,1755167671531,-600.0,0.00018989,2]
[379153948,1755167671552,-600.0,0.00018989,2]
[379153949,1755167671572,-600.0,0.00018989,2]
[379153950,1755167671592,-600.0,0.00018989,2]
[379153951,1755167671617,-600.0,0.00018989,2]
[379153952,1755167671637,-600.0,0.00018989,2]
[379153953,1755167671657,-500.0,0.00018989,2]
[379153954,1755167671679,-151.0,0.00018989,2]
[379153955,1755167671701,-151.0,0.00018989,2]
[379153956,1755167671723,-151.0,0.00018989,2]
[379153957,1755167671746,-151.0,0.00018989,2]
[379153958,1755167671768,-151.0,0.00018989,2]
[379153959,1755167671790,-151.0,0.00018989,2]
[379153960,1755167671811,-151.0,0.00018989,2]
[379153961,1755167671836,-151.0,0.00018989,2]
[379153962,1755167671857,-151.0,0.00018989,2]
[379153963,1755167671877,-151.0,0.00018989,2]
[379153964,1755167671900,-151.0,0.00018989,2]
[379153965,1755167671923,-500.0,0.00018989,2]
[379153966,1755167671947,-500.0,0.00018989,2]
[379153967,1755167671971,-500.0,0.00018989,2]
[379153968,1755167671992,-612.76087341,0.00018989,2]
[379153969,1755167672015,-62768.08102067,0.00019,2]
[379153970,1755167708170,-302.42082826,0.000189,2]
[379153971,1755167708193,-23462.57917174,0.00019,2]
[379153972,1755167711462,181.0,0.00027155,120]
[379153973,1755167712705,181.0,0.00028513,120]
[379153974,1755167713948,181.0,0.00029939,120]
[379153977,1755167732877,-261.23676435,0.000189,2]
[379153978,1755167732899,-3435.58947928,0.000189,2]
[379153979,1755167732921,-211.17375637,0.00019,2]
[379153980,1755167735109,164.38,0.00013699,2]
[379153981,1755167795490,300.0,0.000184,6]
[379153982,1755167797979,700.0,0.000185,6]
[379153983,1755167799697,1100.0,0.000186,6]
[379153984,1755167801969,1400.0,0.000187,6]
[379153985,1755167804002,1800.0,0.000188,6]
[379153986,1755167806447,300.0,0.000189,6]
[379153987,1755167810160,300.0,0.0002619,120]
[379153988,1755167810398,300.0,0.0002618,120]
[379153989,1755167811006,300.0,0.0002617,120]
[379153990,1755167812703,1862.1826081,0.0003,120]
[379153991,1755167818222,1000.0,0.00030136,120]
[379153992,1755167834548,1303.56154858,0.00018998,5]
[379153993,1755167834598,1303.56154858,0.00018999,5]
[379153994,1755167834656,1303.56154857,0.00018999,5]
[379153996,1755167843672,2100.0,0.000184,6]
[379153997,1755167845356,4300.0,0.000185,6]
[379153998,1755167847493,6500.0,0.000186,6]
[379153999,1755167849623,8700.0,0.000187,6]
[379154000,1755167851764,8615.67770484,0.000188,6]
[379154001,1755167851791,2284.32229516,0.000188,6]
[379154002,1755167854470,2100.0,0.000189,6]
[379154003,1755167862035,279.86026681,0.0003013,120]
[379154004,1755167865069,339.79603332,0.0003013,120]
[379154005,1755167882756,201.0,0.00030136,120]
[379154006,1755167959095,400.0,0.000184,6]
[379154007,1755167961261,900.0,0.000185,6]
[379154008,1755167963364,1400.0,0.000186,6]
[379154009,1755167965988,1800.0,0.000187,6]
[379154010,1755167966671,1173.1441145,0.00018998,5]
[379154011,1755167966725,1173.1441145,0.00018999,5]
[379154012,1755167967682,2300.0,0.000188,6]
[379154013,1755167969849,400.0,0.000189,6]
[379154016,1755168004781,-250.0,0.0001876,2]
[379154017,1755168004804,-300.0,0.0001876,2]
[379154018,1755168004828,-443.46199936,0.00018899,2]
[379154019,1755168004855,-1200.0,0.00018899,2]
[379154020,1755168004879,-300.0,0.00018899,2]
[379154021,1755168004903,-30283.80508669,0.000189,2]
[379154022,1755168004928,-166.68881469,0.000189,2]
[379154023,1755168004960,-1250.15620148,0.000189,2]
[379154024,1755168005002,-760.28264313,0.000189,2]
[379154025,1755168005042,-812.63992399,0.000189,2]
[379154026,1755168005092,-1400.25055457,0.000189,2]
[379154027,1755168005140,-1629.64441377,0.000189,2]
[379154028,1755168005181,-807.50358132,0.000189,2]
[379154029,1755168005203,-3773.72406886,0.000189,2]
[379154030,1755168005238,-396.0,0.00018959,2]
[379154031,1755168005280,-396.0,0.00018959,2]
[379154032,1755168005305,-10912.0,0.00018959,2]
[379154033,1755168005328,-500.0,0.00018973,2]
[379154034,1755168005352,-500.0,0.00018973,2]
[379154035,1755168005374,-500.0,0.00018973,2]
[379154036,1755168005397,-500.0,0.00018973,2]
[379154037,1755168005419,-500.0,0.00018973,2]
[379154038,1755168005442,-500.0,0.00018973,2]
[379154039,1755168005465,-500.0,0.00018973,2]
[379154040,1755168005488,-500.0,0.00018973,2]
[379154041,1755168005515,-500.0,0.00018973,2]
[379154042,1755168005536,-500.0,0.00018973,2]
[379154043,1755168005558,-161.80764527,0.00018973,2]
[379154044,1755168005580,-500.0,0.00018973,2]
[379154045,1755168005603,-500.0,0.00018973,2]
[379154046,1755168005625,-500.0,0.00018973,2]
[379154047,1755168005647,-499.72212267,0.00018973,2]
[379154048,1755168005669,-160.08951732,0.00018973,2]
[379154049,1755168005691,-128.22342688,0.00018973,2]
[379154051,1755168012154,174.0,0.00029806,120]
[379154052,1755168045746,527.16,0.00018989,3]
[379154053,1755168048417,190.46,0.0002609,120]
[379154054,1755168053758,2000.0,0.00018686,120]
[379154056,1755168087934,-250.0,0.00018065,2]
[379154057,1755168092414,-168.0,0.00018065,2]
[379154058,1755168095749,-229.59300896,0.00018065,2]
[379154059,1755168101031,-325.88132324,0.00018065,2]
[379154060,1755168102824,-271.83666596,0.00018065,2]
[379154061,1755168109946,-152.0,0.00018065,2]
[379154062,1755168115514,-152.0,0.00018065,2]
[379154063,1755168117938,-233.09461008,0.00018065,2]
[379154064,1755168120137,-184.77798799,0.00018065,2]
[379154065,1755168123495,-542.18322847,0.00018065,2]
[379154066,1755168126509,-159.74212284,0.00018065,2]
[379154067,1755168130230,-482.45182548,0.00018065,2]
[379154068,1755168130582,200.0,0.00017998,2]
[379154069,1755168132193,180.55,0.00017998,2]
[379154070,1755168132882,-297.82922698,0.00018065,2]
[379154071,1755168132904,-317.86160447,0.00018173,2]
[379154072,1755168133054,500.0,0.00030137,120]
[379154073,1755168135897,-211.84478321,0.00018173,2]
[379154074,1755168137554,-221.81412718,0.00018173,2]
[379154075,1755168140384,-155.99,0.00018173,2]
[379154076,1755168142705,-218.57890675,0.00018173,2]
[379154077,1755168143829,500.0,0.00030137,120]
[379154078,1755168146187,-179.20646784,0.00018173,2]
[379154079,1755168148543,-392.37617574,0.00018173,2]
[379154080,1755168149996,-192.69124193,0.00018082,2]
[379154081,1755168150429,500.0,0.00030137,120]
[379154082,1755168151664,-247.42867286,0.00018082,2]
[379154083,1755168154866,-182.88268255,0.00018082,2]
[379154084,1755168157379,300.0,0.0003,120]
[379154085,1755168157659,500.0,0.00030137,120]
[379154086,1755168158114,-176.37903128,0.00018082,2]
[379154087,1755168160197,-200.0,0.00018082,2]
[379154088,1755168162698,-181.59751361,0.00018082,2]
[379154089,1755168163835,500.0,0.00030137,120]
[379154090,1755168165038,-183.42646577,0.00018082,2]
[379154091,1755168165063,-212.23233234,0.00018173,2]
[379154094,1755168168387,-287.94272704,0.00018173,2]
[379154095,1755168169715,-200.0,0.00018173,2]
[379154096,1755168171739,500.0,0.00030137,120]
[379154097,1755168172390,-288.34851673,0.00018173,2]
[379154098,1755168177646,-268.09890311,0.00018173,2]
[379154099,1755168178343,500.0,0.00030137,120]
[379154100,1755168180036,170.0,0.00017957,7]
[379154102,1755168181560,-166.79452366,0.00018173,2]